bitfinex/quotes_SOLUSD_20250912
["timestamp","ask_amount","ask_price","bid_price","bid_amount"]
[1757665280064,4.21574315,237.21,237.17,0.12]
[1757665280278,0.66,237.2,237.17,0.12]
[1757665280466,3.48531911,237.19,237.17,0.12]
[1757665280748,33.26,237.18,237.17,0.12]
[1757665280953,36.0781703,237.18,237.17,0.12]
[1757665281147,36.74531911,237.18,237.17,0.12]
[1757665281353,57.37812012,237.18,237.17,0.12]
[1757665286485,24.77812012,237.18,237.17,0.12]
[1757665286793,32.56,237.18,237.17,0.12]
[1757665286999,32.58,237.18,237.17,0.12]
[1757665287302,32.58,237.18,237.17,5.01637565]
[1757665289588,4.90532793,237.23,237.17,5.01637565]
[1757665289764,32.56,237.22,237.17,5.01637565]
[1757665291173,37.4655148,237.22,237.17,5.01637565]
[1757665291371,37.4655148,237.22,237.17,4.33637565]
[1757665291594,37.4655148,237.22,237.17,5.01637565]
[1757665291800,4.9055148,237.22,237.17,5.01637565]
[1757665292097,33.25,237.21,237.17,4.33637565]
[1757665293708,32.56,237.21,237.17,5.01637565]
[1757665294291,4.90531886,237.23,237.17,5.01637565]
[1757665294477,32.54,237.22,237.17,5.01637565]
[1757665294672,32.54,237.22,237.18,0.68]
[1757665295489,0.69,237.3,237.19,0.68]
[1757665295688,32.54,237.26,237.2,4.2158516]
[1757665295997,32.54,237.26,237.21,0.68]
[1757665296295,32.54,237.26,237.22,0.68]
[1757665296497,32.54,237.26,237.23,0.68]
[1757665297699,32.54,237.26,237.23,4.89518816]
[1757665299806,32.54,237.26,237.2,10.539629]
[1757665299807,32.54,237.26,237.24,0.68]
[1757665299985,0.03,237.29,237.25,0.68]
[1757665300307,33.64,237.28,237.25,0.68]
[1757665300711,33.64,237.28,237.26,0.68]
[1757665300910,33.64,237.28,237.27,0.68]
[1757665301233,0.03,237.29,237.28,4.2144302]
[1757665301389,0.03,237.29,237.28,4.8944302]
[1757665309018,0.03,237.29,237.28,4.2144302]
[1757665310026,0.03,237.29,237.28,4.8944302]
[1757665312936,0.03,237.29,237.28,30.8944302]
[1757665317623,0.03,237.29,237.28,26.0]
[1757665318004,0.03,237.29,237.28,30.2144302]
[1757665318423,0.03,237.29,237.28,30.3344302]
[1757665321447,0.73,237.29,237.28,0.12]
[1757665321645,0.03,237.29,237.28,0.12]
[1757665321837,0.03,237.29,237.28,4.9944302]
[1757665322143,0.03,237.29,237.28,4.3344302]
[1757665322522,0.73,237.29,237.28,0.12]
[1757665323643,0.03,237.29,237.28,4.3344302]
[1757665328442,0.03,237.29,237.28,4.9944302]
[1757665329835,0.03,237.29,237.28,4.3344302]
[1757665332364,0.03,237.29,237.28,4.3344302]
[1757665332733,0.03,237.29,237.28,4.9944302]
[1757665334151,0.03,237.29,237.28,4.3344302]
[1757665335546,0.03,237.29,237.28,4.9944302]
[1757665335945,0.03,237.29,237.28,4.3344302]
[1757665337669,0.03,237.29,237.28,4.9944302]
[1757665338238,0.03,237.29,237.28,30.9944302]
[1757665340254,0.03,237.29,237.28,4.9944302]
[1757665342862,0.03,237.31,237.3,26.0]
[1757665343341,0.03,237.31,237.3,26.66]
[1757665343955,375.92185911,237.29,237.28,14.87050572]
[1757665344263,312.8978922,237.29,237.28,48.05050572]
[1757665344464,250.69013818,237.29,237.28,48.05050572]
[1757665344667,198.48506273,237.29,237.28,48.05050572]
[1757665344844,198.20858177,237.29,237.28,48.05050572]
[1757665345042,198.02426113,237.29,237.28,48.05050572]
[1757665345268,172.09375845,237.29,237.28,48.05050572]
[1757665345468,146.07109815,237.29,237.28,48.05050572]
[1757665345669,146.07109815,237.29,237.28,61.64609973]
[1757665345860,98.25177244,237.29,237.28,62.36609973]
[1757665346065,72.93648612,237.29,237.28,62.36609973]
[1757665346374,12.01368302,237.29,237.28,62.36609973]
[1757665346551,11.84844494,237.29,237.28,62.36609973]
[1757665346744,11.68320686,237.29,237.28,62.36609973]
[1757665346949,11.60058782,237.29,237.28,62.36609973]
[1757665347151,11.43534974,237.29,237.28,62.36609973]
[1757665347455,0.03,237.31,237.3,26.0]
[1757665347853,0.03,237.31,237.3,26.72]
[1757665350779,0.03,237.31,237.3,64.05407501]
[1757665351380,0.03,237.31,237.3,30.93407501]
[1757665351578,0.03,237.31,237.3,64.05407501]
[1757665352073,0.03,237.31,237.3,64.03407501]
[1757665352575,0.03,237.31,237.3,30.93407501]
[1757665353080,0.03,237.31,237.3,64.03407501]
[1757665353377,0.03,237.31,237.3,77.62966902]
[1757665354658,0.01738096,237.33,237.3,88.58626404]
[1757665354858,0.03,237.36,237.35,26.0]
[1757665355469,0.73,237.36,237.35,26.0]
[1757665355979,0.03,237.36,237.35,26.0]
[1757665356480,0.03,237.36,237.35,30.21318727]
[1757665359292,0.03,237.36,237.35,77.54878128]
[1757665359586,0.1,237.39,237.35,55.06174947]
[1757665359785,0.1,237.39,237.35,88.08174947]
[1757665360172,0.1,237.39,237.38,26.0]
[1757665360983,0.1,237.39,237.38,30.21265481]
[1757665362101,0.1,237.39,237.38,26.0]
[1757665364090,0.1,237.39,237.38,30.21265481]
[1757665364473,0.1,237.39,237.38,4.21265481]
[1757665365200,0.1,237.39,237.38,4.93265481]
[1757665365381,1e-08,237.39,237.38,18.52824882]
[1757665365700,1e-08,237.39,237.38,36.29332194]
[1757665365895,1e-08,237.39,237.38,63.17265481]
[1757665366593,1e-08,237.39,237.38,30.21265481]
[1757665366798,1e-08,237.39,237.38,37.17265481]
[1757665366979,0.70000001,237.39,237.38,30.21265481]
[1757665367380,0.70000001,237.39,237.38,4.21265481]
[1757665367694,0.70000001,237.39,237.38,30.21265481]
[1757665368089,0.70000001,237.39,237.33,10.53356313]
[1757665368285,0.7,237.38,237.33,43.49356313]
[1757665368491,1e-08,237.39,237.36,26.0]
[1757665368686,0.7,237.37,237.36,26.0]
[1757665369282,0.7,237.37,237.36,30.21300977]
[1757665370698,0.7,237.37,237.36,30.33300977]
[1757665371505,0.73000001,237.39,237.36,4.33300977]
[1757665371806,0.7,237.38,237.36,4.33300977]
[1757665372386,0.7,237.37,237.36,30.33300977]
[1757665372579,0.03000001,237.39,237.36,30.33300977]
[1757665372786,0.7,237.38,237.36,30.33300977]
[1757665372978,0.03000001,237.39,237.36,4.33300977]
[1757665373190,0.03000001,237.39,237.36,14.8655342]
[1757665373393,0.73000001,237.39,237.36,14.8655342]
[1757665374781,0.03000001,237.39,237.36,14.8655342]
[1757665376395,0.03000001,237.39,237.36,15.5655342]
[1757665376700,0.03000001,237.39,237.37,26.7]
[1757665377293,0.03000001,237.39,237.36,14.8655342]
[1757665377294,1e-08,237.42,237.41,26.0]
[1757665377498,1e-08,237.42,237.41,58.88]
[1757665377703,1e-08,237.42,237.41,59.58]
[1757665378478,1e-08,237.42,237.41,63.79212248]
[1757665379415,1e-08,237.42,237.41,65.47651031]
[1757665379791,1e-08,237.42,237.41,63.79212248]
[1757665381294,1e-08,237.42,237.41,63.77212248]
[1757665381513,1e-08,237.42,237.41,63.75212248]
[1757665382591,1e-08,237.42,237.41,37.73212248]
[1757665383893,1e-08,237.42,237.41,4.91212248]
[1757665384102,1e-08,237.42,237.41,37.03212248]
[1757665384906,0.72000001,237.42,237.41,30.21212248]
[1757665385406,0.72000001,237.42,237.41,4.21212248]
[1757665385712,0.72000001,237.42,237.41,30.21212248]
[1757665386081,0.72000001,237.42,237.41,4.21212248]
[1757665386411,0.72000001,237.42,237.36,43.45227778]
[1757665386708,0.72,237.41,237.37,14.74491299]
[1757665386896,0.72,237.4,237.37,30.21283228]
[1757665387099,0.72,237.39,237.37,30.21283228]
[1757665387488,0.72,237.38,237.37,40.74491299]
[1757665388000,0.72,237.4,237.37,40.74491299]
[1757665388198,1e-08,237.42,237.37,41.44491299]
[1757665388199,0.72000001,237.42,237.37,41.44491299]
[1757665388506,1e-08,237.42,237.41,26.0]
[1757665390199,1e-08,237.42,237.41,30.21212248]
[1757665390502,1e-08,237.42,237.41,30.91212248]
[1757665390804,1e-08,237.42,237.41,4.91212248]
[1757665392509,1e-08,237.42,237.41,30.91212248]
[1757665392810,1e-08,237.42,237.41,63.67212248]
[1757665395126,1e-08,237.42,237.41,30.91212248]
[1757665395295,1e-08,237.42,237.41,63.65212248]
[1757665395993,1e-08,237.42,237.41,30.21212248]
[1757665396201,1e-08,237.42,237.41,62.95212248]
[1757665396715,1e-08,237.42,237.41,30.21212248]
[1757665396925,1e-08,237.42,237.41,62.95212248]
[1757665397423,1e-08,237.42,237.41,63.65212248]
[1757665397800,1e-08,237.42,237.41,77.24771649]
[1757665398126,0.03,237.44,237.43,4.21176767]
[1757665398317,0.03,237.44,237.43,36.93176767]
[1757665398728,0.03,237.44,237.43,4.91176767]
[1757665398916,0.03,237.44,237.43,37.63176767]
[1757665399097,0.03,237.44,237.43,39.31601366]
[1757665400308,0.72,237.57,237.46,26.0]
[1757665400508,0.72,237.57,237.5,26.0]
[1757665400799,0.72,237.57,237.5,58.72]
[1757665402000,0.72,237.57,237.47,0.7]
[1757665402001,0.72,237.57,237.49,26.0]
[1757665402402,0.72,237.57,237.51,14.73622162]
[1757665402819,0.82,237.59,237.51,14.73622162]
[1757665403528,0.82,237.59,237.52,32.68]
[1757665404704,0.82,237.59,237.53,14.73498083]
[1757665404914,0.82,237.59,237.53,40.73498083]
[1757665405328,0.1,237.59,237.53,40.73498083]
[1757665406427,0.1,237.59,237.54,0.66]
[1757665407003,0.1,237.59,237.55,14.73374025]
[1757665407404,0.7,237.58,237.53,26.0]
[1757665407608,0.7,237.57,237.49,10.52661944]
[1757665407842,0.7,237.56,237.5,26.0]
[1757665408010,0.7,237.55,237.5,26.0]
[1757665408209,0.7,237.54,237.5,26.0]
[1757665408423,0.7,237.54,237.5,30.21052631]
[1757665409122,0.7,237.54,237.5,4.21052631]
[1757665409628,0.7,237.54,237.49,14.73732304]
[1757665410010,0.7,237.57,237.5,0.66]
[1757665410208,0.13,237.59,237.54,26.0]
[1757665410407,0.7,237.58,237.54,26.0]
[1757665410608,0.7,237.57,237.54,26.0]
[1757665410834,0.13,237.59,237.54,26.0]
[1757665410835,0.7,237.56,237.54,26.0]
[1757665411031,0.7,237.56,237.52,26.0]
[1757665411220,0.7,237.56,237.53,26.0]
[1757665411415,0.7,237.55,237.49,14.73732304]
[1757665411635,0.7,237.54,237.49,10.52661944]
[1757665412134,0.7,237.54,237.49,36.52661944]
[1757665412308,0.7,237.54,237.49,37.18661944]
[1757665413234,4.33894994,237.59,237.49,40.73732304]
[1757665413438,0.7,237.56,237.49,40.73732304]
[1757665414020,0.13,237.59,237.5,0.66]
[1757665414242,0.7,237.58,237.52,26.0]
[1757665414431,0.13,237.59,237.53,0.66]
[1757665414815,0.13,237.59,237.55,26.0]
[1757665415319,0.13,237.59,237.56,14.73312005]
[1757665418022,0.13,237.59,237.57,0.66]
[1757665418423,0.13,237.59,237.56,14.73312005]
[1757665418617,0.13,237.59,237.56,15.39312005]
[1757665418837,0.13,237.59,237.56,14.73312005]
[1757665419054,0.13,237.59,237.56,15.39312005]
[1757665420957,0.13,237.59,237.56,14.73312005]
[1757665421115,0.7,237.58,237.56,30.20946287]
[1757665421320,0.7,237.58,237.56,30.20935248]
[1757665421937,0.13,237.59,237.56,30.20935248]
[1757665422334,0.13,237.59,237.56,4.86935248]
[1757665422537,0.13,237.59,237.58,4.20910851]
[1757665422935,0.13,237.59,237.58,4.86910851]
[1757665424045,0.13,237.59,237.58,4.20910851]
[1757665424258,0.13,237.59,237.58,4.86910851]
[1757665424834,0.13,237.59,237.58,4.20910851]
[1757665425035,0.13,237.59,237.58,30.20910851]
[1757665426849,0.83,237.59,237.56,26.0]
[1757665427337,0.7,237.58,237.53,4.20999452]
[1757665427536,0.7,237.57,237.53,30.20999452]
[1757665428251,0.7,237.57,237.53,4.20999452]
[1757665428548,0.13,237.59,237.53,4.20999452]
[1757665428549,0.7,237.56,237.53,14.73498083]
[1757665428755,0.13,237.59,237.53,14.73498083]
[1757665428935,0.83,237.59,237.53,15.39498083]
[1757665430243,0.83,237.59,237.56,4.20946287]
[1757665431352,0.13,237.59,237.56,14.73312005]
[1757665431559,0.7,237.58,237.56,14.73312005]
[1757665433070,0.13,237.59,237.56,14.73312005]
[1757665433269,0.83,237.59,237.56,14.73312005]
[1757665434359,0.13,237.59,237.56,14.73312005]
[1757665434567,0.13,237.59,237.57,0.66]
[1757665434865,0.13,237.59,237.58,0.66]
[1757665435664,0.13,237.59,237.58,4.86910851]
[1757665437353,0.13,237.59,237.58,0.71]
[1757665438464,0.13,237.59,237.58,33.37]
[1757665438864,1e-08,237.59,237.58,33.37]
[1757665439375,1e-08,237.59,237.58,37.57910851]
[1757665439563,1e-08,237.59,237.58,18.51470252]
[1757665439762,1e-08,237.59,237.58,51.17470252]
[1757665440064,1e-08,237.59,237.58,52.85774378]
[1757665443657,1e-08,237.59,237.58,6.60214977]
[1757665443971,1e-08,237.59,237.58,62.86910851]
[1757665444149,1e-08,237.59,237.58,63.57910851]
[1757665446461,1e-08,237.59,237.58,65.26236224]
[1757665446653,1e-08,237.59,237.58,63.57910851]
[1757665448868,1e-08,237.59,237.58,62.86910851]
[1757665449062,1e-08,237.59,237.58,36.86910851]
[1757665449264,1e-08,237.59,237.58,30.20910851]
[1757665449567,1e-08,237.59,237.58,36.86910851]
[1757665452886,1e-08,237.59,237.58,37.57910851]
[1757665453384,1e-08,237.59,237.58,36.86910851]
[1757665455874,1e-08,237.59,237.58,37.57910851]
[1757665456476,1e-08,237.59,237.58,51.17470252]
[1757665456675,1e-08,237.59,237.58,52.85774377]
[1757665457191,0.03,237.62,237.61,26.0]
[1757665457367,0.03,237.62,237.61,72.23559401]
[1757665457573,0.03,237.62,237.61,72.94559401]
[1757665457874,0.03,237.62,237.61,74.62828126]
[1757665458292,0.69,237.76,237.69,26.0]
[1757665458472,0.69,237.76,237.7,32.64]
[1757665460307,0.69,237.76,237.71,4.20680661]
[1757665460595,0.69,237.75,237.71,4.20680661]
[1757665460899,0.69,237.74,237.71,47.36382314]
[1757665461685,0.69,237.74,237.71,14.72382314]
[1757665461872,0.69,237.74,237.69,26.0]
[1757665461873,0.69,237.73,237.69,30.20701999]
[1757665462085,0.69,237.72,237.69,30.20701999]
[1757665462280,4.20610879,237.75,237.67,4.20751462]
[1757665462480,0.69,237.71,237.69,26.0]
[1757665462785,0.69,237.7,237.69,26.0]
[1757665463176,4.20610879,237.75,237.67,4.20751462]
[1757665463372,4.20610879,237.75,237.64,32.64]
[1757665463583,4.20585835,237.77,237.67,26.0]
[1757665463789,4.68553734,237.79,237.67,58.64]
[1757665463973,6.90602321,237.79,237.67,58.64]
[1757665464304,4.68553734,237.79,237.67,58.64]
[1757665464481,6.90602321,237.79,237.67,58.64]
[1757665464876,4.68553734,237.79,237.68,14.72568158]
[1757665466881,0.03,237.7,237.68,14.72568158]
[1757665470101,0.03,237.7,237.68,47.36568158]
[1757665470898,0.03,237.7,237.68,14.72568158]
[1757665471199,0.03,237.7,237.68,47.36568158]
[1757665474706,0.03,237.7,237.68,32.62]
[1757665475912,0.03,237.7,237.68,4.20733759]
[1757665482702,0.03,237.7,237.68,36.82733759]
[1757665486315,0.03,237.7,237.68,36.94733759]
[1757665486615,0.03,237.7,237.69,30.20716058]
[1757665489524,0.03,237.7,237.69,62.82716058]
[1757665493212,0.03,237.7,237.69,30.20716058]
[1757665493425,0.03,237.7,237.69,62.82716058]
[1757665495730,0.03,237.7,237.69,4.91716058]
[1757665496029,0.03,237.7,237.69,37.53716058]
[1757665499123,0.03,237.7,237.69,39.21970627]
[1757665499342,0.03,237.7,237.69,42.51519898]
[1757665500231,0.03,237.7,237.69,31.88970627]
[1757665500432,0.03,237.7,237.69,64.48970627]
[1757665501318,0.03,237.7,237.69,68.64217472]
[1757665501655,0.03,237.7,237.69,42.64217472]
[1757665502634,0.03,237.7,237.69,56.23776873]
[1757665503926,0.03,237.7,237.69,137.13776873]
[1757665504732,0.01,237.7,237.69,137.13776873]
[1757665504936,0.01,237.7,237.69,137.25776873]
[1757665508547,1e-08,237.79,237.73,39.59559401]
[1757665508853,1e-08,237.79,237.78,39.59559401]
[1757665509053,1e-08,237.79,237.78,72.19559401]
[1757665509862,1e-08,237.79,237.78,76.40116218]
[1757665510447,1e-08,237.79,237.78,43.80116218]
[1757665510951,1e-08,237.79,237.78,78.08285901]
[1757665511132,1e-08,237.79,237.78,78.06285901]
[1757665512240,1e-08,237.79,237.78,78.77285901]
[1757665512766,1e-08,237.79,237.78,46.19285901]
[1757665512935,1e-08,237.79,237.78,164.60434834]
[1757665513458,1e-08,237.79,237.78,163.89434834]
[1757665513647,1e-08,237.79,237.78,164.60434834]
[1757665515447,1e-08,237.79,237.78,132.02434834]
[1757665515751,1e-08,237.79,237.78,164.60434834]
[1757665516163,1e-08,237.79,237.78,132.02434834]
[1757665516365,1e-08,237.79,237.78,164.60434834]
[1757665516570,1e-08,237.79,237.78,131.31434834]
[1757665516751,1e-08,237.79,237.78,163.89434834]
[1757665517062,1e-08,237.79,237.78,164.60434834]
[1757665517970,0.67,237.96,237.83,39.59559401]
[1757665518156,0.1,237.99,237.88,39.59559401]
[1757665518468,0.1,237.99,237.92,26.0]
[1757665518638,0.1,237.99,237.96,26.0]
[1757665518843,0.1,237.99,237.97,32.58]
[1757665519149,0.1,237.99,237.97,1.68070758]
[1757665519468,0.67,237.98,237.97,1.68070758]
[1757665519647,0.67,237.98,237.97,34.26070758]
[1757665520261,0.67,237.98,237.97,38.46291794]
[1757665521251,0.67,237.98,237.97,36.78221036]
[1757665522268,0.67,237.98,237.97,36.76221036]
[1757665523365,0.67,237.98,237.97,5.88305918]
[1757665523562,0.67,237.98,237.97,38.44305918]
[1757665523769,0.1,237.99,237.97,38.44305918]
[1757665524153,0.1,237.99,237.97,36.76221036]
[1757665524559,0.1,237.99,237.98,1.68049575]
[1757665525047,0.77,238.03,238.0,26.0]
[1757665525252,0.77,238.03,238.01,32.56]
[1757665525771,0.77,238.03,238.02,34.40087982]
[1757665525964,0.1,238.03,238.02,34.40087982]
[1757665526354,0.79,238.03,238.02,30.19955221]
[1757665526561,0.79,238.03,238.02,26.0]
[1757665526875,0.1,238.03,238.02,58.56]
[1757665527288,0.1,238.03,238.02,62.76028285]
[1757665527653,0.1,238.03,238.02,66.96161046]
[1757665528077,0.1,238.03,238.02,34.40161046]
[1757665528282,0.1,238.03,238.02,66.96161046]
[1757665530783,0.1,238.03,238.02,8.40161046]
[1757665530953,0.79,238.03,238.02,4.20132761]
[1757665535958,0.79,238.03,238.01,26.0]
[1757665536153,0.69,238.02,238.01,30.20142273]
[1757665537985,0.69,238.02,238.01,26.0]
[1757665538290,0.69,238.02,238.01,30.20150413]
[1757665538779,0.1,238.03,238.01,30.20150413]
[1757665538985,0.79,238.03,238.01,30.20150413]
[1757665539368,0.69,238.02,238.01,30.20150413]
[1757665540584,0.1,238.03,238.01,30.20150413]
[1757665541168,0.79,238.03,238.01,30.20150413]
[1757665542458,0.1,238.03,238.01,30.20150413]
[1757665542657,0.1,238.03,238.02,26.71]
[1757665542874,0.1,238.03,238.02,0.71]
[1757665542875,1e-08,238.03,238.02,0.71]
[1757665543188,1e-08,238.03,238.02,26.9066651]
[1757665543963,1e-08,238.03,238.02,30.35600501]
[1757665544167,1e-08,238.03,238.02,34.55733262]
[1757665544881,1e-08,238.03,238.02,49.3423987]
[1757665545074,1e-08,238.03,238.02,50.0523987]
[1757665546479,0.69,238.16,238.07,13.59559401]
[1757665546797,0.79,238.19,238.11,26.0]
[1757665546994,0.79,238.19,238.15,26.0]
[1757665547180,0.79,238.19,238.16,32.54]
[1757665547494,0.79,238.19,238.18,26.0]
[1757665547667,0.79,238.19,238.18,58.54]
[1757665547668,0.1,238.19,238.18,58.54]
[1757665548082,0.1,238.19,238.17,32.54]
[1757665548398,0.69,238.18,238.17,36.73868161]
[1757665548598,0.69,238.18,238.17,32.54]
[1757665548773,0.69,238.18,238.13,26.0]
[1757665549098,0.69,238.18,238.14,32.54]
[1757665549278,0.69,238.17,238.16,26.0]
[1757665549481,0.69,238.17,238.16,32.54]
[1757665550007,0.1,238.19,238.18,26.0]
[1757665550182,0.1,238.19,238.18,58.54]
[1757665550789,0.1,238.19,238.18,59.25]
[1757665551205,0.1,238.19,238.18,0.71]
[1757665551503,0.1,238.19,238.17,12.59419407]
[1757665551696,0.1,238.19,238.18,32.54]
[1757665551899,0.1,238.19,238.18,4.19850533]
[1757665552204,0.1,238.19,238.18,36.73850533]
[1757665552700,0.1,238.19,238.18,15.48740503]
[1757665552905,0.1,238.19,238.17,12.59419407]
[1757665553088,0.69,238.18,238.17,12.59419407]
[1757665553782,0.69,238.18,238.11,10.49911312]
[1757665553783,0.69,238.18,238.11,43.07911312]
[1757665553979,0.1,238.19,238.12,16.91100026]
[1757665554327,0.69,238.18,238.13,32.58]
[1757665554608,0.1,238.19,238.13,32.58]
[1757665555411,0.1,238.19,238.16,26.0]
[1757665555904,0.76,238.19,238.16,26.0]
[1757665556082,0.76,238.19,238.17,4.19868161]
[1757665556287,0.1,238.19,238.17,4.19868161]
[1757665559920,0.1,238.19,238.13,26.0]
[1757665560115,0.66,238.18,238.15,26.0]
[1757665560414,0.1,238.19,238.16,26.0]
[1757665560588,0.1,238.19,238.18,26.0]
[1757665560794,0.1,238.19,238.18,58.56]
[1757665561024,0.1,238.19,238.18,59.28]
[1757665561611,0.16,238.19,238.18,32.6]
[1757665561915,0.16,238.19,238.17,4.19868161]
[1757665562094,0.16,238.19,238.17,36.79868161]
[1757665562611,0.16,238.19,238.11,26.72]
[1757665562612,0.66,238.18,238.11,26.72]
[1757665562796,0.66,238.18,238.15,26.0]
[1757665562995,0.16,238.19,238.15,26.0]
[1757665563215,0.82,238.19,238.15,26.0]
[1757665563400,0.16,238.19,238.16,0.72]
[1757665563605,0.16,238.19,238.15,26.0]
[1757665564031,0.66,238.18,238.16,4.19885791]
[1757665564511,0.16,238.19,238.16,4.19885791]
[1757665564715,0.16,238.19,238.18,26.0]
[1757665565218,0.16,238.19,238.18,26.72]
[1757665565416,0.16,238.19,238.18,0.72]
[1757665566006,0.16,238.19,238.18,30.19850533]
[1757665566205,0.16,238.19,238.18,62.89850533]
[1757665566620,0.16,238.19,238.18,63.61850533]
[1757665567622,0.16,238.19,238.18,62.89850533]
[1757665567921,0.16,238.19,238.18,63.61850533]
[1757665568108,1e-08,238.19,238.18,63.61850533]
[1757665568620,1e-08,238.19,238.18,62.89850533]
[1757665568804,1e-08,238.19,238.18,63.61850533]
[1757665570225,1e-08,238.19,238.18,76.31605748]
[1757665571723,0.66000001,238.19,238.09,14.7003234]
[1757665572026,0.66,238.18,238.09,14.7003234]
[1757665572241,1e-08,238.19,238.11,1.67894394]
[1757665572527,0.66,238.17,238.12,26.0]
[1757665572821,0.66,238.16,238.12,26.0]
[1757665573027,0.66,238.15,238.12,26.0]
[1757665573901,0.66,238.14,238.09,4.2000924]
[1757665574099,0.66,238.13,238.06,43.42124641]
[1757665574332,0.66,238.12,238.06,43.42124641]
[1757665574506,0.66,238.12,238.09,26.0]
[1757665575024,0.66,238.11,238.09,26.0]
[1757665575412,0.66,238.11,238.1,4.199916]
[1757665575613,0.66,238.1,238.03,10.50257703]
[1757665575804,0.66,238.09,238.03,10.50257703]
[1757665576017,0.66,238.09,238.03,40.70372814]
[1757665576208,0.66,238.08,238.03,14.70372814]
[1757665576432,0.66,238.07,238.03,14.70372814]
[1757665576933,0.66,238.06,238.03,14.70372814]
[1757665577128,0.66,238.05,238.03,14.70372814]
[1757665577338,0.66,238.04,238.03,14.70372814]
[1757665577711,0.66,238.04,238.03,4.20115111]
[1757665577910,0.66,238.08,238.03,4.20115111]
[1757665578108,0.66,238.08,238.04,26.0]
[1757665579310,4.19944192,238.13,238.05,4.20079815]
[1757665579617,0.66,238.08,238.05,4.20079815]
[1757665579924,0.66,238.07,238.03,30.20101073]
[1757665580107,0.66,238.06,238.03,30.20101073]
[1757665580303,0.66,238.05,238.03,26.0]
[1757665580627,4.19944192,238.13,238.03,26.0]
[1757665580628,0.66,238.07,238.03,26.0]
[1757665580924,0.66,238.06,238.03,26.0]
[1757665581305,0.66,238.06,238.03,30.2011096]
[1757665582515,0.66,238.05,238.03,4.2011096]
[1757665583223,0.66,238.07,238.02,14.73464665]
[1757665583531,0.66,238.06,238.02,14.73464665]
[1757665583732,0.66,238.05,238.02,14.73464665]
[1757665584737,10.49785708,238.15,238.02,14.73464665]
[1757665584738,0.66,238.08,238.02,14.73464665]
[1757665585441,0.66,238.12,238.03,0.72]
[1757665586715,0.66,238.12,238.05,26.0]
[1757665586904,0.66,238.12,238.05,26.72]
[1757665587324,0.66,238.12,238.06,14.70217592]
[1757665587522,0.66,238.14,238.06,15.42217592]
[1757665587720,4.19879328,238.17,238.07,0.72]
[1757665587925,0.66,238.16,238.06,14.70217592]
[1757665588113,0.66,238.15,238.06,14.70217592]
[1757665588427,0.66,238.14,238.06,14.70217592]
[1757665588631,0.66,238.13,238.06,14.70217592]
[1757665590039,0.66,238.13,238.06,15.42217592]
[1757665590213,0.66,238.18,238.09,26.0]
[1757665590420,0.66,238.18,238.1,0.72]
[1757665591735,0.66,238.18,238.14,26.0]
[1757665591913,0.66,238.17,238.14,26.0]
[1757665593039,0.66,238.17,238.15,4.19903422]
[1757665593538,0.66,238.16,238.12,4.19956324]
[1757665594241,1e-08,238.19,238.12,4.19956324]
[1757665594730,0.66,238.18,238.11,14.69908865]
[1757665594932,0.66,238.17,238.11,14.69908865]
[1757665595229,1e-08,238.19,238.11,14.69908865]
[1757665595425,0.66,238.16,238.11,14.69908865]
[1757665595932,1e-08,238.19,238.11,4.19973961]